[Event "*** Titled Tuesday Blitz"]
[Site "Chess.com"]
[Date "2021.02.09"]
[Round "2"]
[White "AndrewMaco"]
[Black "Noam_Vitenberg"]
[Result "1-0"]
[WhiteElo "2686"]
[BlackElo "2435"]
[TimeControl "180+1"]
[EndTime "10:20:46 PST"]
[Termination "AndrewMaco won by checkmate"]

1. e4 {[%clk 0:03:00.9]} 1... d6 {[%clk 0:02:52.8]} 2. d4 {[%clk 0:02:36.5]}
2... Nf6 {[%clk 0:02:38]} 3. Bd3 {[%clk 0:02:33.9]} 3... Nbd7 {[%clk 0:02:36.1]}
4. c3 {[%clk 0:02:32.5]} 4... e5 {[%clk 0:02:36.4]} 5. Nf3 {[%clk 0:02:32.9]}
5... c6 {[%clk 0:02:35.9]} 6. O-O {[%clk 0:02:32.6]} 6... Be7 {[%clk 0:02:36.2]}
7. Re1 {[%clk 0:02:32.6]} 7... O-O {[%clk 0:02:33.2]} 8. Nbd2 {[%clk 0:02:28.3]}
8... b6 {[%clk 0:02:25.5]} 9. a4 {[%clk 0:02:23.2]} 9... Bb7 {[%clk 0:02:21.4]}
10. Nf1 {[%clk 0:02:17.6]} 10... a6 {[%clk 0:02:19.6]} 11. Ng3 {[%clk
0:02:12.9]} 11... Re8 {[%clk 0:02:16.9]} 12. Qc2 {[%clk 0:02:06.2]} 12... b5
{[%clk 0:02:05.9]} 13. h3 {[%clk 0:01:54.1]} 13... Bf8 {[%clk 0:01:49.7]} 14. b3
{[%clk 0:01:11.4]} 14... g6 {[%clk 0:01:47.1]} 15. Bb2 {[%clk 0:01:08.8]} 15...
Bg7 {[%clk 0:01:47.7]} 16. c4 {[%clk 0:01:06.4]} 16... Rc8 {[%clk 0:01:35.5]}
17. c5 {[%clk 0:01:02.7]} 17... exd4 {[%clk 0:01:21.7]} 18. cxd6 {[%clk
0:00:59.5]} 18... c5 {[%clk 0:01:22.2]} 19. axb5 {[%clk 0:00:57.6]} 19... axb5
{[%clk 0:01:15.9]} 20. e5 {[%clk 0:00:56.6]} 20... Nd5 {[%clk 0:01:07.3]} 21.
Bxb5 {[%clk 0:00:44.4]} 21... Bc6 {[%clk 0:01:00.5]} 22. Bxc6 {[%clk 0:00:43.7]}
22... Rxc6 {[%clk 0:01:01.4]} 23. Nxd4 {[%clk 0:00:40.7]} 23... Rc8 {[%clk
0:00:50.3]} 24. Nf3 {[%clk 0:00:36.2]} 24... Nb4 {[%clk 0:00:48.4]} 25. Qd1
{[%clk 0:00:28]} 25... Nc6 {[%clk 0:00:44.8]} 26. Qd5 {[%clk 0:00:20.2]} 26...
Nb4 {[%clk 0:00:44.8]} 27. Qc4 {[%clk 0:00:20.1]} 27... Nc6 {[%clk 0:00:44.4]}
28. Qd5 {[%clk 0:00:19.9]} 28... Nb4 {[%clk 0:00:44.4]} 29. Qb7 {[%clk
0:00:18.7]} 29... Nc2 {[%clk 0:00:33.6]} 30. Qd5 {[%clk 0:00:17.1]} 30... Nxe1
{[%clk 0:00:29.9]} 31. Rxe1 {[%clk 0:00:18]} 31... Nb6 {[%clk 0:00:30.2]} 32.
Qd3 {[%clk 0:00:17.6]} 32... c4 {[%clk 0:00:30.3]} 33. bxc4 {[%clk 0:00:18.5]}
33... Nxc4 {[%clk 0:00:31.2]} 34. Ba1 {[%clk 0:00:18.5]} 34... Qa5 {[%clk
0:00:30.7]} 35. Kh2 {[%clk 0:00:16.9]} 35... Red8 {[%clk 0:00:21.4]} 36. Bc3
{[%clk 0:00:15.3]} 36... Qa3 {[%clk 0:00:20.1]} 37. Rd1 {[%clk 0:00:15.2]} 37...
Nxd6 {[%clk 0:00:15.1]} 38. exd6 {[%clk 0:00:13.2]} 38... Qxc3 {[%clk
0:00:14.8]} 39. Qe4 {[%clk 0:00:12.3]} 39... Qf6 {[%clk 0:00:11.7]} 40. d7
{[%clk 0:00:12.3]} 40... Rb8 {[%clk 0:00:11.4]} 41. h4 {[%clk 0:00:11]} 41... h5
{[%clk 0:00:08.7]} 42. Rd2 {[%clk 0:00:07.8]} 42... Bh6 {[%clk 0:00:07.9]} 43.
Rd5 {[%clk 0:00:07.4]} 43... Bf8 {[%clk 0:00:07.4]} 44. Ng5 {[%clk 0:00:06.8]}
44... Qe7 {[%clk 0:00:06.8]} 45. Qd3 {[%clk 0:00:06.1]} 45... Rb7 {[%clk
0:00:06.2]} 46. Nxh5 {[%clk 0:00:05.8]} 46... Bg7 {[%clk 0:00:02.9]} 47. Nxg7
{[%clk 0:00:03.9]} 47... Kxg7 {[%clk 0:00:03.8]} 48. Qd4+ {[%clk 0:00:04.6]}
48... Kg8 {[%clk 0:00:04.2]} 49. h5 {[%clk 0:00:04.8]} 49... Rbxd7 {[%clk
0:00:03.9]} 50. hxg6 {[%clk 0:00:04.7]} 50... Rxd5 {[%clk 0:00:02]} 51. gxf7+
{[%clk 0:00:05.3]} 51... Qxf7 {[%clk 0:00:02.4]} 52. Qg4 {[%clk 0:00:01.5]}
52... Qg7 {[%clk 0:00:02.3]} 53. f4 {[%clk 0:00:02.2]} 53... Rd4 {[%clk
0:00:02.2]} 54. Qe6+ {[%clk 0:00:02.6]} 54... Kh8 {[%clk 0:00:02.1]} 55. Qh3+
{[%clk 0:00:03.2]} 55... Kg8 {[%clk 0:00:02.5]} 56. Qe6+ {[%clk 0:00:03.2]}
56... Kf8 {[%clk 0:00:03.1]} 57. Kg3 {[%clk 0:00:03.6]} 57... Re8 {[%clk
0:00:03.2]} 58. Qf5+ {[%clk 0:00:03.7]} 58... Ke7 {[%clk 0:00:02.6]} 59. Qc5+
{[%clk 0:00:04.2]} 59... Rd6 {[%clk 0:00:02]} 60. Qc7+ {[%clk 0:00:03.9]} 60...
Rd7 {[%clk 0:00:02.4]} 61. Qc5+ {[%clk 0:00:04]} 61... Kd8 {[%clk 0:00:02.9]}
62. Kf3 {[%clk 0:00:04.5]} 62... Rc7 {[%clk 0:00:02.5]} 63. Qd5+ {[%clk
0:00:01.8]} 63... Kc8 {[%clk 0:00:03.4]} 64. Qa8+ {[%clk 0:00:01.5]} 64... Kd7
{[%clk 0:00:03.4]} 65. Qd5+ {[%clk 0:00:02.1]} 65... Kc8 {[%clk 0:00:03.6]} 66.
Qa8+ {[%clk 0:00:02.4]} 66... Kd7 {[%clk 0:00:04]} 67. Qd5+ {[%clk 0:00:03]}
67... Ke7 {[%clk 0:00:04.6]} 68. Qe4+ {[%clk 0:00:03.1]} 68... Kd8 {[%clk
0:00:02.8]} 69. Qd5+ {[%clk 0:00:03.4]} 69... Qd7 {[%clk 0:00:01.8]} 70. Qa8+
{[%clk 0:00:04]} 70... Rc8 {[%clk 0:00:02.2]} 71. Qa5+ {[%clk 0:00:04.5]} 71...
Qc7 {[%clk 0:00:02.7]} 72. Qd5+ {[%clk 0:00:04.6]} 72... Qd7 {[%clk 0:00:03.3]}
73. Qa5+ {[%clk 0:00:04.8]} 73... Ke7 {[%clk 0:00:03.8]} 74. Qe5+ {[%clk
0:00:04.9]} 74... Kf8 {[%clk 0:00:02.4]} 75. Qf6+ {[%clk 0:00:05.4]} 75... Kg8
{[%clk 0:00:01.8]} 76. Qg6+ {[%clk 0:00:06]} 76... Kf8 {[%clk 0:00:01.9]} 77.
Nh7+ {[%clk 0:00:06.4]} 77... Qxh7 {[%clk 0:00:02.1]} 78. Qxh7 {[%clk 0:00:07]}
78... Rc3+ {[%clk 0:00:02.3]} 79. Kg4 {[%clk 0:00:07.4]} 79... Rcc8 {[%clk
0:00:02.3]} 80. Qf5+ {[%clk 0:00:07.5]} 80... Kg8 {[%clk 0:00:02.2]} 81. Qg6+
{[%clk 0:00:07.9]} 81... Kh8 {[%clk 0:00:01.9]} 82. Qh6+ {[%clk 0:00:08.2]}
82... Kg8 {[%clk 0:00:02.2]} 83. f5 {[%clk 0:00:08.8]} 83... Rc4+ {[%clk
0:00:01.6]} 84. Kg5 {[%clk 0:00:09]} 84... Rc7 {[%clk 0:00:01.8]} 85. g4 {[%clk
0:00:09]} 85... Rg7+ {[%clk 0:00:01.7]} 86. Kf4 {[%clk 0:00:09.5]} 86... Ra8
{[%clk 0:00:01.3]} 87. Qe6+ {[%clk 0:00:09.4]} 87... Kh8 {[%clk 0:00:01.8]} 88.
Qc6 {[%clk 0:00:08.2]} 88... Rf8 {[%clk 0:00:01.4]} 89. g5 {[%clk 0:00:08.2]}
89... Re7 {[%clk 0:00:01.4]} 90. g6 {[%clk 0:00:08.3]} 90... Rg7 {[%clk
0:00:01.3]} 91. Kg5 {[%clk 0:00:08.4]} 91... Rfg8 {[%clk 0:00:01.5]} 92. Qh1+
{[%clk 0:00:07.7]} 92... Rh7 {[%clk 0:00:01.3]} 93. Qxh7# {[%clk 0:00:08.1]} 1-0

[Event "*** Titled Tuesday Blitz"]
[Site "Chess.com"]
[Date "2021.02.09"]
[Round "2"]
[White "EugeneRougon"]
[Black "AldokhinIvan"]
[Result "1/2-1/2"]
[WhiteElo "2710"]
[BlackElo "2486"]
[TimeControl "180+1"]
[EndTime "10:21:04 PST"]
[Termination "Game drawn by 50-move rule"]

1. e4 {[%clk 0:03:00.9]} 1... c5 {[%clk 0:02:26.3]} 2. Nf3 {[%clk 0:02:59.4]}
2... e6 {[%clk 0:02:25.9]} 3. d4 {[%clk 0:02:59.1]} 3... cxd4 {[%clk 0:02:26.2]}
4. Nxd4 {[%clk 0:03:00]} 4... a6 {[%clk 0:02:23.1]} 5. Bd3 {[%clk 0:02:51.9]}
5... Qc7 {[%clk 0:02:23.3]} 6. O-O {[%clk 0:02:50.8]} 6... Nf6 {[%clk
0:02:23.8]} 7. Qe2 {[%clk 0:02:50.1]} 7... Bd6 {[%clk 0:02:24]} 8. Nf3 {[%clk
0:02:42.6]} 8... Nc6 {[%clk 0:02:23.3]} 9. Nc3 {[%clk 0:02:25]} 9... Ng4 {[%clk
0:02:23.3]} 10. h3 {[%clk 0:02:08.9]} 10... h5 {[%clk 0:02:23.1]} 11. Re1 {[%clk
0:01:34.3]} 11... Bc5 {[%clk 0:02:21]} 12. hxg4 {[%clk 0:01:22.7]} 12... hxg4
{[%clk 0:02:18.5]} 13. e5 {[%clk 0:01:23.6]} 13... gxf3 {[%clk 0:02:14.5]} 14.
Qxf3 {[%clk 0:01:24.5]} 14... Nxe5 {[%clk 0:01:34.1]} 15. Qg3 {[%clk 0:01:23.3]}
15... Bd4 {[%clk 0:00:46.4]} 16. Bf4 {[%clk 0:01:14.6]} 16... d6 {[%clk
0:00:33.4]} 17. Ne2 {[%clk 0:00:33.3]} 17... Ba7 {[%clk 0:00:24.8]} 18. Qxg7
{[%clk 0:00:26.5]} 18... Rh4 {[%clk 0:00:11.9]} 19. Qg8+ {[%clk 0:00:22.4]}
19... Kd7 {[%clk 0:00:09.6]} 20. Bxe5 {[%clk 0:00:14.6]} 20... dxe5 {[%clk
0:00:05.6]} 21. Qxf7+ {[%clk 0:00:14.6]} 21... Kc6 {[%clk 0:00:06]} 22. Qxc7+
{[%clk 0:00:11.6]} 22... Kxc7 {[%clk 0:00:05.9]} 23. g3 {[%clk 0:00:12.2]} 23...
Rh6 {[%clk 0:00:03.6]} 24. Be4 {[%clk 0:00:11]} 24... Rf6 {[%clk 0:00:03.5]} 25.
Rf1 {[%clk 0:00:10]} 25... Bd7 {[%clk 0:00:03.9]} 26. Kg2 {[%clk 0:00:09.9]}
26... Raf8 {[%clk 0:00:04.4]} 27. f3 {[%clk 0:00:09.9]} 27... Bb5 {[%clk
0:00:04.9]} 28. c4 {[%clk 0:00:09]} 28... Bd7 {[%clk 0:00:05]} 29. Rad1 {[%clk
0:00:07.7]} 29... R6f7 {[%clk 0:00:03.8]} 30. Rh1 {[%clk 0:00:07.9]} 30... Bc5
{[%clk 0:00:03.9]} 31. Rd3 {[%clk 0:00:08.1]} 31... Rg7 {[%clk 0:00:04.1]} 32.
Rh5 {[%clk 0:00:07.9]} 32... Bd6 {[%clk 0:00:02.8]} 33. a3 {[%clk 0:00:07.7]}
33... Rfg8 {[%clk 0:00:02.7]} 34. b4 {[%clk 0:00:07.4]} 34... b6 {[%clk
0:00:03.3]} 35. Rc3 {[%clk 0:00:07.3]} 35... Bc8 {[%clk 0:00:02.1]} 36. c5
{[%clk 0:00:07.5]} 36... bxc5 {[%clk 0:00:02.8]} 37. bxc5 {[%clk 0:00:08.4]}
37... Be7 {[%clk 0:00:03.4]} 38. Rd3 {[%clk 0:00:07.4]} 38... Bf6 {[%clk
0:00:03.4]} 39. Nc3 {[%clk 0:00:07.2]} 39... Be7 {[%clk 0:00:03.8]} 40. Ne2
{[%clk 0:00:07.3]} 40... Bxc5 {[%clk 0:00:04]} 41. Rxe5 {[%clk 0:00:07]} 41...
Bd6 {[%clk 0:00:04.2]} 42. Rc3+ {[%clk 0:00:07]} 42... Kd7 {[%clk 0:00:03.2]}
43. Rh5 {[%clk 0:00:06.8]} 43... Bxg3 {[%clk 0:00:03.8]} 44. Nxg3 {[%clk
0:00:06.3]} 44... Rxg3+ {[%clk 0:00:04.4]} 45. Kf2 {[%clk 0:00:07.2]} 45... R3g5
{[%clk 0:00:05]} 46. Rh7+ {[%clk 0:00:07]} 46... R5g7 {[%clk 0:00:04.9]} 47.
Rxg7+ {[%clk 0:00:07.5]} 47... Rxg7 {[%clk 0:00:05]} 48. Ke3 {[%clk 0:00:08.4]}
48... Kd8 {[%clk 0:00:04.9]} 49. Rd3+ {[%clk 0:00:08.5]} 49... Rd7 {[%clk
0:00:05.3]} 50. Rxd7+ {[%clk 0:00:07.6]} 50... Kxd7 {[%clk 0:00:05.8]} 51. Kd4
{[%clk 0:00:08.5]} 51... Kd6 {[%clk 0:00:06.1]} 52. f4 {[%clk 0:00:09.1]} 52...
a5 {[%clk 0:00:06]} 53. Bd3 {[%clk 0:00:09.2]} 53... Bd7 {[%clk 0:00:06.2]} 54.
Bc4 {[%clk 0:00:09.6]} 54... Bc6 {[%clk 0:00:06.3]} 55. Ba2 {[%clk 0:00:10.1]}
55... Bb5 {[%clk 0:00:06.4]} 56. Bb3 {[%clk 0:00:10]} 56... Bc6 {[%clk
0:00:06.1]} 57. Bc4 {[%clk 0:00:10.4]} 57... Bd7 {[%clk 0:00:06.5]} 58. Bd3
{[%clk 0:00:10.8]} 58... Bc6 {[%clk 0:00:06.9]} 59. Bg6 {[%clk 0:00:11]} 59...
Bb5 {[%clk 0:00:07]} 60. Bf7 {[%clk 0:00:10.9]} 60... Bc6 {[%clk 0:00:07.2]} 61.
Bg8 {[%clk 0:00:11.4]} 61... Bd7 {[%clk 0:00:07.5]} 62. Ke4 {[%clk 0:00:10.6]}
62... Bc6+ {[%clk 0:00:07.6]} 63. Kd4 {[%clk 0:00:11]} 63... Bd7 {[%clk
0:00:08.1]} 64. Bh7 {[%clk 0:00:11.7]} 64... Bc6 {[%clk 0:00:08.3]} 65. Bd3
{[%clk 0:00:12]} 65... Bd7 {[%clk 0:00:08.4]} 66. Bc4 {[%clk 0:00:12.6]} 66...
Bc6 {[%clk 0:00:08.6]} 67. Ba2 {[%clk 0:00:12.8]} 67... Bd7 {[%clk 0:00:09]} 68.
Ke4 {[%clk 0:00:13]} 68... Bc6+ {[%clk 0:00:09.1]} 69. Ke3 {[%clk 0:00:12.9]}
69... Bd7 {[%clk 0:00:09.6]} 70. Kf3 {[%clk 0:00:13]} 70... Kc5 {[%clk 0:00:09]}
71. Ke4 {[%clk 0:00:12.5]} 71... Kd6 {[%clk 0:00:08.7]} 72. Kd4 {[%clk
0:00:12.9]} 72... Bc6 {[%clk 0:00:09]} 73. Bb1 {[%clk 0:00:12.9]} 73... Bd7
{[%clk 0:00:08.9]} 74. Bd3 {[%clk 0:00:13]} 74... Bc6 {[%clk 0:00:09.2]} 75. Be4
{[%clk 0:00:12.8]} 75... Bd7 {[%clk 0:00:07.8]} 76. Bb7 {[%clk 0:00:12.7]} 76...
Be8 {[%clk 0:00:07.6]} 77. Kc4 {[%clk 0:00:13]} 77... Bd7 {[%clk 0:00:04.8]} 78.
Ba6 {[%clk 0:00:13.1]} 78... Bc6 {[%clk 0:00:04.6]} 79. Bb5 {[%clk 0:00:13.3]}
79... Bd5+ {[%clk 0:00:04.9]} 80. Kd4 {[%clk 0:00:13.4]} 80... Bb7 {[%clk
0:00:05.4]} 81. Ba4 {[%clk 0:00:12.9]} 81... Ba6 {[%clk 0:00:05.6]} 82. Be8
{[%clk 0:00:12.9]} 82... Bf1 {[%clk 0:00:06]} 83. Bg6 {[%clk 0:00:12.7]} 83...
Be2 {[%clk 0:00:06.3]} 84. Be4 {[%clk 0:00:12.9]} 84... Bf1 {[%clk 0:00:06.5]}
85. Kc3 {[%clk 0:00:12.7]} 85... Ba6 {[%clk 0:00:06.9]} 86. Kd4 {[%clk
0:00:12.9]} 86... Bf1 {[%clk 0:00:06.2]} 87. Bc2 {[%clk 0:00:12.5]} 87... Ba6
{[%clk 0:00:06.2]} 88. Bb3 {[%clk 0:00:12.8]} 88... Bf1 {[%clk 0:00:06.6]} 89.
Ba4 {[%clk 0:00:12.3]} 89... Be2 {[%clk 0:00:06.6]} 90. Bb3 {[%clk 0:00:12.5]}
90... Ba6 {[%clk 0:00:07]} 91. Bc4 {[%clk 0:00:12.5]} 91... Bb7 {[%clk
0:00:05.9]} 92. Bb5 {[%clk 0:00:12.5]} 92... Bc8 {[%clk 0:00:05.6]} 93. Bd3
{[%clk 0:00:11.5]} 93... Bb7 {[%clk 0:00:05.5]} 94. Be4 {[%clk 0:00:11.9]} 94...
Ba6 {[%clk 0:00:05.7]} 95. Bf3 {[%clk 0:00:10.5]} 95... Bb5 {[%clk 0:00:05.8]}
96. Bd1 {[%clk 0:00:09.5]} 96... Ba6 {[%clk 0:00:06.1]} 97. Bb3 {[%clk
0:00:10.1]} 97... Bb5 {[%clk 0:00:06.2]} 98. Ba2 {[%clk 0:00:10.1]} 98... Ba6
{[%clk 0:00:06.6]} 99. Bb1 {[%clk 0:00:10.6]} 99... Bb5 {[%clk 0:00:06.9]} 100.
Bc2 {[%clk 0:00:11]} 100... Ba6 {[%clk 0:00:07.3]} 101. Ba4 {[%clk 0:00:11.5]}
101... Bf1 {[%clk 0:00:07.1]} 102. Be8 {[%clk 0:00:11.3]} 102... Be2 {[%clk
0:00:07.2]} 1/2-1/2

[Event "*** Titled Tuesday Blitz"]
[Site "Chess.com"]
[Date "2021.02.09"]
[Round "2"]
[White "Nesty_Javi_Chess"]
[Black "ukchessbomber"]
[Result "1/2-1/2"]
[WhiteElo "2649"]
[BlackElo "2408"]
[TimeControl "180+1"]
[EndTime "10:21:09 PST"]
[Termination "Game drawn by repetition"]

1. e4 {[%clk 0:03:00.9]} 1... e5 {[%clk 0:02:59.1]} 2. Nf3 {[%clk 0:03:00.5]}
2... Nc6 {[%clk 0:02:59.7]} 3. d4 {[%clk 0:03:00.5]} 3... exd4 {[%clk
0:02:59.6]} 4. Bc4 {[%clk 0:03:00.7]} 4... Nf6 {[%clk 0:02:59.8]} 5. O-O {[%clk
0:03:01.2]} 5... Nxe4 {[%clk 0:02:59.6]} 6. Re1 {[%clk 0:03:01.6]} 6... d5
{[%clk 0:03:00.3]} 7. Bxd5 {[%clk 0:03:02.5]} 7... Qxd5 {[%clk 0:03:01.2]} 8.
Nc3 {[%clk 0:03:03.4]} 8... Qh5 {[%clk 0:02:47.7]} 9. Nxe4 {[%clk 0:03:04.3]}
9... Be7 {[%clk 0:02:39.5]} 10. Bg5 {[%clk 0:03:04.1]} 10... Be6 {[%clk
0:02:28.7]} 11. Bxe7 {[%clk 0:03:03.4]} 11... Kxe7 {[%clk 0:02:29.2]} 12. Nxd4
{[%clk 0:02:57.9]} 12... Qxd1 {[%clk 0:02:30.1]} 13. Raxd1 {[%clk 0:02:57.3]}
13... Nxd4 {[%clk 0:02:26.3]} 14. Rxd4 {[%clk 0:02:58.2]} 14... Rad8 {[%clk
0:02:25.7]} 15. Ra4 {[%clk 0:02:47.8]} 15... a6 {[%clk 0:02:15]} 16. Nc5 {[%clk
0:02:08.1]} 16... Rd5 {[%clk 0:01:59.1]} 17. Nxe6 {[%clk 0:01:43.7]} 17... fxe6
{[%clk 0:01:58.5]} 18. Rae4 {[%clk 0:01:44.6]} 18... Rd6 {[%clk 0:01:57.3]} 19.
h4 {[%clk 0:01:41.6]} 19... Re8 {[%clk 0:01:55.5]} 20. Rg4 {[%clk 0:01:37.5]}
20... g6 {[%clk 0:01:54]} 21. h5 {[%clk 0:01:34.2]} 21... Kf6 {[%clk 0:01:54.1]}
22. Re3 {[%clk 0:01:29.7]} 22... Rd5 {[%clk 0:01:47.2]} 23. hxg6 {[%clk
0:01:26.9]} 23... hxg6 {[%clk 0:01:48.1]} 24. Rf3+ {[%clk 0:01:14.2]} 24... Kg7
{[%clk 0:01:47.9]} 25. Rc3 {[%clk 0:01:06.6]} 25... c6 {[%clk 0:01:35]} 26. g3
{[%clk 0:00:59.8]} 26... Rf8 {[%clk 0:01:33.2]} 27. Rb4 {[%clk 0:00:58.4]} 27...
Rf7 {[%clk 0:01:31.5]} 28. Rcb3 {[%clk 0:00:25.5]} 28... b5 {[%clk 0:01:29.9]}
29. Rc3 {[%clk 0:00:23.7]} 29... c5 {[%clk 0:01:25.7]} 30. Re4 {[%clk
0:00:23.7]} 30... Rf6 {[%clk 0:01:19.4]} 31. Rce3 {[%clk 0:00:16.8]} 31... Kf7
{[%clk 0:01:19.7]} 32. Re2 {[%clk 0:00:16.1]} 32... Rd1+ {[%clk 0:01:11.5]} 33.
Kg2 {[%clk 0:00:16.1]} 33... Ra1 {[%clk 0:01:12.1]} 34. a3 {[%clk 0:00:14.7]}
34... Ra2 {[%clk 0:01:05.8]} 35. b4 {[%clk 0:00:14.4]} 35... Rxa3 {[%clk
0:00:58.8]} 36. bxc5 {[%clk 0:00:14.3]} 36... Rc3 {[%clk 0:00:59.4]} 37. Re5
{[%clk 0:00:14.5]} 37... b4 {[%clk 0:00:52.1]} 38. g4 {[%clk 0:00:14.4]} 38...
a5 {[%clk 0:00:50.7]} 39. Kf1 {[%clk 0:00:12.4]} 39... a4 {[%clk 0:00:50.2]} 40.
g5 {[%clk 0:00:12.6]} 40... Rf5 {[%clk 0:00:46.9]} 41. Rxe6 {[%clk 0:00:12.9]}
41... Rxg5 {[%clk 0:00:34]} 42. Re7+ {[%clk 0:00:13.8]} 42... Kf8 {[%clk
0:00:31.2]} 43. Re8+ {[%clk 0:00:13.8]} 43... Kf7 {[%clk 0:00:31.7]} 44. R2e7+
{[%clk 0:00:14.7]} 44... Kf6 {[%clk 0:00:32.2]} 45. Ra7 {[%clk 0:00:14.4]} 45...
b3 {[%clk 0:00:24.6]} 46. Rf8+ {[%clk 0:00:13.2]} 46... Ke6 {[%clk 0:00:22.7]}
47. cxb3 {[%clk 0:00:13.2]} 47... axb3 {[%clk 0:00:23.6]} 48. Rb7 {[%clk
0:00:12.4]} 48... Rgxc5 {[%clk 0:00:21.9]} 49. Rg8 {[%clk 0:00:12.3]} 49... Rc1+
{[%clk 0:00:16.8]} 50. Kg2 {[%clk 0:00:12.3]} 50... Rg5+ {[%clk 0:00:17.3]} 51.
Kf3 {[%clk 0:00:12.2]} 51... Rc3+ {[%clk 0:00:17.8]} 52. Ke2 {[%clk 0:00:12]}
52... Rg1 {[%clk 0:00:13.5]} 53. Kd2 {[%clk 0:00:09.1]} 53... Rc2+ {[%clk
0:00:13.6]} 54. Ke3 {[%clk 0:00:09.2]} 54... b2 {[%clk 0:00:13.6]} 55. Rgb8
{[%clk 0:00:08.4]} 55... Rb1 {[%clk 0:00:11.2]} 56. Rb6+ {[%clk 0:00:07.7]}
56... Kd5 {[%clk 0:00:08.6]} 57. Rd8+ {[%clk 0:00:05.2]} 57... Kc5 {[%clk
0:00:06.4]} 58. Rdb8 {[%clk 0:00:04.5]} 58... Kd5 {[%clk 0:00:06]} 59. f4 {[%clk
0:00:03.8]} 59... Rc3+ {[%clk 0:00:05.2]} 60. Kd2 {[%clk 0:00:03.9]} 60... Rh3
{[%clk 0:00:06.1]} 61. Rb5+ {[%clk 0:00:03.8]} 61... Kc6 {[%clk 0:00:05.8]} 62.
Rb4 {[%clk 0:00:04.7]} 62... Rbh1 {[%clk 0:00:04.9]} 63. Rxb2 {[%clk 0:00:04.6]}
63... R1h2+ {[%clk 0:00:05.8]} 64. Kc1 {[%clk 0:00:04.7]} 64... Rh1+ {[%clk
0:00:06]} 65. Kc2 {[%clk 0:00:04.7]} 65... R1h2+ {[%clk 0:00:06.1]} 66. Kb1
{[%clk 0:00:04.9]} 66... Rxb2+ {[%clk 0:00:06.6]} 67. Kxb2 {[%clk 0:00:05.8]}
67... Rh4 {[%clk 0:00:06.6]} 68. Rg8 {[%clk 0:00:06.1]} 68... Rxf4 {[%clk
0:00:06.9]} 69. Rxg6+ {[%clk 0:00:06.3]} 69... Kb5 {[%clk 0:00:07.6]} 70. Rg2
{[%clk 0:00:07]} 70... Kb4 {[%clk 0:00:08.5]} 71. Rc2 {[%clk 0:00:07.5]} 71...
Rf3 {[%clk 0:00:08.5]} 72. Rh2 {[%clk 0:00:07.8]} 72... Rg3 {[%clk 0:00:08.9]}
73. Rc2 {[%clk 0:00:08]} 73... Rh3 {[%clk 0:00:08.8]} 74. Rg2 {[%clk 0:00:08.2]}
74... Rf3 {[%clk 0:00:09]} 75. Rg4+ {[%clk 0:00:08.3]} 75... Kb5 {[%clk
0:00:08.4]} 76. Rg2 {[%clk 0:00:09.2]} 76... Kb4 {[%clk 0:00:08.7]} 77. Rg4+
{[%clk 0:00:09.5]} 77... Kb5 {[%clk 0:00:09.3]} 78. Rh4 {[%clk 0:00:09.9]} 78...
Rg3 {[%clk 0:00:09.5]} 79. Rh5+ {[%clk 0:00:10]} 79... Kc4 {[%clk 0:00:10]} 80.
Rh4+ {[%clk 0:00:10.9]} 80... Kd3 {[%clk 0:00:10.3]} 81. Rh8 {[%clk 0:00:10.9]}
81... Rg2+ {[%clk 0:00:10.8]} 82. Kb3 {[%clk 0:00:11]} 82... Rg1 {[%clk
0:00:11.7]} 83. Rd8+ {[%clk 0:00:11.1]} 83... Ke4 {[%clk 0:00:12.3]} 84. Kc2
{[%clk 0:00:11.7]} 84... Rg2+ {[%clk 0:00:12.1]} 85. Kc3 {[%clk 0:00:12.1]}
85... Rg7 {[%clk 0:00:12.6]} 86. Re8+ {[%clk 0:00:11.8]} 86... Kd5 {[%clk
0:00:12.8]} 87. Re1 {[%clk 0:00:11.8]} 87... Rc7+ {[%clk 0:00:11.5]} 88. Kb4
{[%clk 0:00:11.9]} 88... Ra7 {[%clk 0:00:12.4]} 89. Rd1+ {[%clk 0:00:11.7]}
89... Kc6 {[%clk 0:00:12.9]} 90. Rh1 {[%clk 0:00:12.6]} 90... Kb6 {[%clk
0:00:13.3]} 91. Rh6+ {[%clk 0:00:12.4]} 91... Kc7 {[%clk 0:00:12.3]} 92. Kb5
{[%clk 0:00:13.3]} 92... Rb7+ {[%clk 0:00:12]} 93. Kc5 {[%clk 0:00:13.3]} 93...
Kb8 {[%clk 0:00:12.6]} 94. Rh1 {[%clk 0:00:10.9]} 94... Rc7+ {[%clk 0:00:12.7]}
95. Kb6 {[%clk 0:00:10.9]} 95... Rb7+ {[%clk 0:00:12.6]} 96. Kc6 {[%clk
0:00:11.3]} 96... Rc7+ {[%clk 0:00:13.1]} 97. Kd6 {[%clk 0:00:11.8]} 97... Rc2
{[%clk 0:00:13.1]} 98. Rb1+ {[%clk 0:00:11.7]} 98... Ka8 {[%clk 0:00:12.3]} 99.
Kd7 {[%clk 0:00:10.8]} 99... Ka7 {[%clk 0:00:12.4]} 100. Kd6 {[%clk 0:00:10.6]}
100... Ka8 {[%clk 0:00:12.5]} 101. Kd5 {[%clk 0:00:10.6]} 101... Ka7 {[%clk
0:00:12.8]} 102. Kd4 {[%clk 0:00:10.8]} 102... Rc8 {[%clk 0:00:13.3]} 103. Kd5
{[%clk 0:00:10.9]} 103... Rd8+ {[%clk 0:00:13.7]} 104. Kc6 {[%clk 0:00:10.9]}
104... Rc8+ {[%clk 0:00:14.2]} 105. Kd7 {[%clk 0:00:11.1]} 105... Rc2 {[%clk
0:00:13.9]} 106. Ra1+ {[%clk 0:00:11.3]} 106... Kb7 {[%clk 0:00:13]} 107. Rb1+
{[%clk 0:00:12.2]} 107... Ka7 {[%clk 0:00:13.4]} 1/2-1/2